[Event "Live Chess"]
[Site "Chess.com"]
[Date "2023.05.20"]
[Round "-"]
[White "Leonid_Starozhilov"]
[Black "EdenHazard8"]
[Result "1-0"]
[WhiteElo "2659"]
[BlackElo "2124"]
[TimeControl "300"]
[EndTime "10:42:46 PDT"]
[Termination "Leonid_Starozhilov won by resignation"]

1. e4 {[%clk 0:04:58.7]} 1... c6 {[%clk 0:04:58.3]} 2. Nf3 {[%clk 0:04:57.5]}
2... d5 {[%clk 0:04:58.2]} 3. Nc3 {[%clk 0:04:56.3]} 3... dxe4 {[%clk
0:04:56.9]} 4. Nxe4 {[%clk 0:04:55.6]} 4... Nf6 {[%clk 0:04:55.8]} 5. Qe2 {[%clk
0:04:54.9]} 5... Nxe4 {[%clk 0:04:54.5]} 6. Qxe4 {[%clk 0:04:53.8]} 6... Nd7
{[%clk 0:04:54.4]} 7. Bc4 {[%clk 0:04:53]} 7... Nf6 {[%clk 0:04:53.9]} 8. Ne5
{[%clk 0:04:52.6]} 8... e6 {[%clk 0:04:52.6]} 9. Qe2 {[%clk 0:04:51.6]} 9... Bd6
{[%clk 0:04:49.8]} 10. d4 {[%clk 0:04:50.7]} 10... h6 {[%clk 0:04:41.9]} 11. O-O
{[%clk 0:04:49.5]} 11... O-O {[%clk 0:04:40.8]} 12. c3 {[%clk 0:04:48.5]} 12...
Qc7 {[%clk 0:04:38.3]} 13. Bf4 {[%clk 0:04:46.9]} 13... Nd5 {[%clk 0:04:35.6]}
14. Bg3 {[%clk 0:04:45.8]} 14... b5 {[%clk 0:04:32.2]} 15. Bd3 {[%clk
0:04:40.7]} 15... Bb7 {[%clk 0:04:28]} 16. Rae1 {[%clk 0:04:37.4]} 16... Rae8
{[%clk 0:04:20.7]} 17. Qe4 {[%clk 0:04:34.9]} 17... Nf6 {[%clk 0:04:17.6]} 18.
Qh4 {[%clk 0:04:33.5]} 18... c5 {[%clk 0:03:56.7]} 19. Bf4 {[%clk 0:04:25.9]}
19... c4 {[%clk 0:02:59.3]} 20. Bc2 {[%clk 0:04:05.3]} 20... Nd5 {[%clk
0:02:45.4]} 21. Bc1 {[%clk 0:03:54.2]} 21... Be7 {[%clk 0:02:04.8]} 22. Qh3
{[%clk 0:03:46.2]} 22... f5 {[%clk 0:01:33.1]} 23. Ng6 {[%clk 0:03:17.5]} 23...
Rf6 {[%clk 0:01:29.3]} 24. Ne5 {[%clk 0:03:10.8]} 24... Rff8 {[%clk 0:01:18.8]}
25. Re2 {[%clk 0:03:09.9]} 25... Bf6 {[%clk 0:01:16]} 26. Nf3 {[%clk 0:03:07.4]}
26... Nf4 {[%clk 0:01:11.8]} 27. Bxf4 {[%clk 0:03:05]} 27... Qxf4 {[%clk
0:01:11.7]} 28. Qg3 {[%clk 0:02:55.3]} 28... Qxg3 {[%clk 0:01:06.6]} 29. hxg3
{[%clk 0:02:55.2]} 29... Bd5 {[%clk 0:01:03.2]} 30. Rfe1 {[%clk 0:02:53]} 30...
Rf7 {[%clk 0:00:55.5]} 31. a4 {[%clk 0:02:47.8]} 31... a6 {[%clk 0:00:53.1]} 32.
axb5 {[%clk 0:02:46.8]} 32... axb5 {[%clk 0:00:53]} 33. Ra1 {[%clk 0:02:45.5]}
33... Rff8 {[%clk 0:00:48.2]} 34. Ne5 {[%clk 0:02:41.3]} 34... Bxe5 {[%clk
0:00:45.9]} 35. Rxe5 {[%clk 0:02:41.2]} 35... Ra8 {[%clk 0:00:44.5]} 36. Rxa8
{[%clk 0:02:40.3]} 36... Rxa8 {[%clk 0:00:43.6]} 37. Bxf5 {[%clk 0:02:39.5]}
37... Ra1+ {[%clk 0:00:38.6]} 38. Kh2 {[%clk 0:02:37.2]} 38... exf5 {[%clk
0:00:35.8]} 39. Rxd5 {[%clk 0:02:36.4]} 39... b4 {[%clk 0:00:35]} 40. Rc5 {[%clk
0:02:32.4]} 40... b3 {[%clk 0:00:32.7]} 41. Rxc4 {[%clk 0:02:31]} 41... Ra2
{[%clk 0:00:32.4]} 42. Rb4 {[%clk 0:02:26.1]} 42... Rxb2 {[%clk 0:00:31.6]} 43.
c4 {[%clk 0:02:21.7]} 43... Rb1 {[%clk 0:00:27.7]} 44. c5 {[%clk 0:02:20.3]}
44... b2 {[%clk 0:00:27.3]} 45. c6 {[%clk 0:02:19.2]} 45... Kf7 {[%clk
0:00:22.5]} 46. c7 {[%clk 0:02:14.9]} 46... Rc1 {[%clk 0:00:21.4]} 47. Rxb2
{[%clk 0:02:12.3]} 47... Rxc7 {[%clk 0:00:20.9]} 48. Rb6 {[%clk 0:02:11.4]}
48... Rd7 {[%clk 0:00:20.2]} 49. Rb4 {[%clk 0:02:09.3]} 49... Ke6 {[%clk
0:00:19.1]} 50. Kh3 {[%clk 0:02:07.7]} 50... g5 {[%clk 0:00:17.2]} 51. g4 {[%clk
0:02:03.8]} 51... f4 {[%clk 0:00:15.5]} 52. g3 {[%clk 0:02:03.1]} 52... Kd5
{[%clk 0:00:12.5]} 53. gxf4 {[%clk 0:02:01.4]} 53... gxf4 {[%clk 0:00:12.4]} 54.
Kg2 {[%clk 0:01:59.7]} 54... Ke4 {[%clk 0:00:11.6]} 55. d5+ {[%clk 0:01:58.7]}
55... Kxd5 {[%clk 0:00:10.5]} 56. Kf3 {[%clk 0:01:57.9]} 56... Ke5 {[%clk
0:00:09.7]} 57. Re4+ {[%clk 0:01:57]} 57... Kf6 {[%clk 0:00:08.5]} 58. Rxf4+
{[%clk 0:01:56.9]} 58... Kg5 {[%clk 0:00:08.4]} 59. Rf5+ {[%clk 0:01:55.6]}
59... Kg6 {[%clk 0:00:07.4]} 60. Kg3 {[%clk 0:01:55.5]} 60... Rd3+ {[%clk
0:00:06.2]} 61. f3 {[%clk 0:01:54.9]} 61... Rd5 {[%clk 0:00:05.7]} 62. Rxd5
{[%clk 0:01:54]} 1-0

[Event "Live Chess"]
[Site "Chess.com"]
[Date "2023.05.20"]
[Round "-"]
[White "Tilbs_12"]
[Black "defenderalist"]
[Result "0-1"]
[WhiteElo "1586"]
[BlackElo "1591"]
[TimeControl "300"]
[EndTime "10:42:51 PDT"]
[Termination "defenderalist won on time"]

1. e4 {[%clk 0:04:57.8]} 1... e5 {[%clk 0:04:58.5]} 2. Nf3 {[%clk 0:04:56.5]}
2... Nc6 {[%clk 0:04:56.7]} 3. c3 {[%clk 0:04:56]} 3... Bc5 {[%clk 0:04:55.3]}
4. d4 {[%clk 0:04:54.8]} 4... exd4 {[%clk 0:04:54.4]} 5. cxd4 {[%clk 0:04:54.5]}
5... Bb4+ {[%clk 0:04:53.7]} 6. Nc3 {[%clk 0:04:54.2]} 6... d5 {[%clk
0:04:51.1]} 7. e5 {[%clk 0:04:52.4]} 7... Bg4 {[%clk 0:04:47.8]} 8. Be2 {[%clk
0:04:43.4]} 8... Nge7 {[%clk 0:04:40.5]} 9. O-O {[%clk 0:04:41.8]} 9... O-O
{[%clk 0:04:38.3]} 10. h3 {[%clk 0:04:36.3]} 10... Bh5 {[%clk 0:04:35.9]} 11.
Be3 {[%clk 0:04:17.5]} 11... a6 {[%clk 0:04:34.1]} 12. Qb3 {[%clk 0:04:15.8]}
12... Nf5 {[%clk 0:04:16.7]} 13. Nxd5 {[%clk 0:04:02.2]} 13... Nxe3 {[%clk
0:04:07.5]} 14. Nxe3 {[%clk 0:03:57.9]} 14... Ba5 {[%clk 0:03:43.9]} 15. Rad1
{[%clk 0:03:44.8]} 15... Bb6 {[%clk 0:03:39.7]} 16. d5 {[%clk 0:03:39.2]} 16...
Bxf3 {[%clk 0:03:29.3]} 17. Bxf3 {[%clk 0:03:37.5]} 17... Nxe5 {[%clk
0:03:27.5]} 18. Be4 {[%clk 0:03:29.8]} 18... Bxe3 {[%clk 0:03:19.3]} 19. Qxe3
{[%clk 0:03:26.2]} 19... f6 {[%clk 0:03:17.8]} 20. Qb3 {[%clk 0:03:10.9]} 20...
Kh8 {[%clk 0:03:04.3]} 21. Qxb7 {[%clk 0:02:56.5]} 21... Rb8 {[%clk 0:03:01]}
22. Qxa6 {[%clk 0:02:55.4]} 22... Rxb2 {[%clk 0:02:58.9]} 23. a4 {[%clk
0:02:50.7]} 23... Qd6 {[%clk 0:02:51.4]} 24. Qxd6 {[%clk 0:02:45.4]} 24... cxd6
{[%clk 0:02:50.4]} 25. Ra1 {[%clk 0:02:38]} 25... Ra8 {[%clk 0:02:44.3]} 26. a5
{[%clk 0:02:35.2]} 26... Nc4 {[%clk 0:02:36.9]} 27. a6 {[%clk 0:02:14.3]} 27...
Nd2 {[%clk 0:02:33]} 28. Rfe1 {[%clk 0:02:13.1]} 28... Nxe4 {[%clk 0:02:30.8]}
29. Rxe4 {[%clk 0:02:12.2]} 29... h6 {[%clk 0:02:28.5]} 30. Re7 {[%clk
0:02:03.9]} 30... Rb6 {[%clk 0:02:25.9]} 31. a7 {[%clk 0:02:01.9]} 31... Kg8
{[%clk 0:02:22.8]} 32. Kf1 {[%clk 0:01:53]} 32... Kf8 {[%clk 0:02:21.5]} 33. Rc7
{[%clk 0:01:51.4]} 33... Kg8 {[%clk 0:02:12.6]} 34. Ke2 {[%clk 0:01:50]} 34...
Kh7 {[%clk 0:02:11.3]} 35. Kf3 {[%clk 0:01:46.1]} 35... Kg6 {[%clk 0:02:10]} 36.
Kf4 {[%clk 0:01:41.5]} 36... Rb4+ {[%clk 0:02:08.4]} 37. Kg3 {[%clk 0:01:37]}
37... f5 {[%clk 0:02:04.3]} 38. Rd7 {[%clk 0:01:32.3]} 38... Rb6 {[%clk
0:02:02.6]} 39. h4 {[%clk 0:01:29.3]} 39... Kf6 {[%clk 0:01:50.3]} 40. Kf3
{[%clk 0:01:23.4]} 40... g5 {[%clk 0:01:48]} 41. hxg5+ {[%clk 0:01:20.3]} 41...
hxg5 {[%clk 0:01:47]} 42. g3 {[%clk 0:00:54.6]} 42... Ke5 {[%clk 0:01:44.6]} 43.
Rf7 {[%clk 0:00:40.8]} 43... g4+ {[%clk 0:01:38.8]} 44. Ke3 {[%clk 0:00:36.2]}
44... Rb3+ {[%clk 0:01:35.6]} 45. Ke2 {[%clk 0:00:35.3]} 45... Rf3 {[%clk
0:01:32]} 46. Rd1 {[%clk 0:00:31]} 46... Ra3 {[%clk 0:01:26.1]} 47. Re7+ {[%clk
0:00:28.5]} 47... Kf6 {[%clk 0:01:20.4]} 48. Re6+ {[%clk 0:00:27.7]} 48... Kg5
{[%clk 0:01:14.8]} 49. Rxd6 {[%clk 0:00:26.6]} 49... R8xa7 {[%clk 0:01:12.6]}
50. Rc6 {[%clk 0:00:23.2]} 50... Re7+ {[%clk 0:01:09]} 51. Re6 {[%clk
0:00:19.2]} 51... Rd7 {[%clk 0:01:07.7]} 52. d6 {[%clk 0:00:17.9]} 52... Ra2+
{[%clk 0:01:06.4]} 53. Ke3 {[%clk 0:00:16.3]} 53... Ra3+ {[%clk 0:01:04.7]} 54.
Kd4 {[%clk 0:00:15.3]} 54... Ra6 {[%clk 0:00:59.4]} 55. Kc5 {[%clk 0:00:13.6]}
55... Ra5+ {[%clk 0:00:58.5]} 56. Kc6 {[%clk 0:00:12.5]} 56... Rda7 {[%clk
0:00:55.5]} 57. d7 {[%clk 0:00:10.2]} 57... R7a6+ {[%clk 0:00:54.9]} 58. Kc7
{[%clk 0:00:08.5]} 58... Ra7+ {[%clk 0:00:49.2]} 59. Kd8 {[%clk 0:00:07]} 59...
f4 {[%clk 0:00:40.7]} 60. gxf4+ {[%clk 0:00:05.7]} 60... Kf5 {[%clk 0:00:39.4]}
61. Rc6 {[%clk 0:00:00.2]} 61... Kxf4 {[%clk 0:00:23]} 62. Ke7 {[%clk
0:00:00.1]} 62... Re5+ {[%clk 0:00:16.7]} 0-1

[Event "Live Chess"]
[Site "Chess.com"]
[Date "2023.05.20"]
[Round "-"]
[White "domrobson"]
[Black "PaulyD81"]
[Result "1-0"]
[WhiteElo "1743"]
[BlackElo "1156"]
[TimeControl "300"]
[EndTime "10:42:51 PDT"]
[Termination "domrobson won by resignation"]

1. d4 {[%clk 0:04:58.6]} 1... Nf6 {[%clk 0:04:59.1]} 2. c4 {[%clk 0:04:49.5]}
2... e6 {[%clk 0:04:58.3]} 3. Nf3 {[%clk 0:04:47.5]} 3... Bb4+ {[%clk
0:04:57.8]} 4. Bd2 {[%clk 0:04:46.3]} 4... Bxd2+ {[%clk 0:04:53.8]} 5. Qxd2
{[%clk 0:04:42.9]} 5... d5 {[%clk 0:04:50.1]} 6. Nc3 {[%clk 0:04:38]} 6... b6
{[%clk 0:04:30.3]} 7. cxd5 {[%clk 0:04:34.2]} 7... Nxd5 {[%clk 0:04:27.1]} 8. e4
{[%clk 0:04:33.8]} 8... Nxc3 {[%clk 0:04:06.7]} 9. bxc3 {[%clk 0:04:31.9]} 9...
Bb7 {[%clk 0:04:02.7]} 10. Bd3 {[%clk 0:04:31.6]} 10... O-O {[%clk 0:04:01]} 11.
O-O {[%clk 0:04:30]} 11... c5 {[%clk 0:03:54.6]} 12. e5 {[%clk 0:04:26.6]} 12...
cxd4 {[%clk 0:03:47.6]} 13. cxd4 {[%clk 0:04:22]} 13... Bxf3 {[%clk 0:03:46.5]}
14. gxf3 {[%clk 0:04:20.9]} 14... Qxd4 {[%clk 0:03:44.9]} 15. Bxh7+ {[%clk
0:04:19.5]} 15... Kxh7 {[%clk 0:03:18.9]} 16. Qxd4 {[%clk 0:04:19.4]} 16... Nc6
{[%clk 0:03:14.8]} 17. Qe4+ {[%clk 0:04:16.3]} 17... Kg8 {[%clk 0:03:10.4]} 18.
Qxc6 {[%clk 0:04:15.8]} 18... Rac8 {[%clk 0:03:07.3]} 19. Qb7 {[%clk 0:04:14.1]}
19... Ra8 {[%clk 0:03:01.1]} 20. Rac1 {[%clk 0:04:11.7]} 20... Rfb8 {[%clk
0:02:58]} 21. Qe4 {[%clk 0:04:08.3]} 21... g6 {[%clk 0:02:43.7]} 22. Rc7 {[%clk
0:04:06.1]} 22... Rf8 {[%clk 0:02:38.6]} 23. Qb7 {[%clk 0:03:59.1]} 23... Rab8
{[%clk 0:02:33.6]} 24. Qxa7 {[%clk 0:03:56.6]} 24... Ra8 {[%clk 0:02:31.9]} 25.
Qxb6 {[%clk 0:03:54.7]} 25... Rxa2 {[%clk 0:02:29.3]} 26. Rfc1 {[%clk
0:03:51.3]} 26... Raa8 {[%clk 0:02:22.9]} 27. Qe3 {[%clk 0:03:45.8]} 27... Ra3
{[%clk 0:02:20]} 28. Qxa3 {[%clk 0:03:43.2]} 1-0

[Event "Live Chess"]
[Site "Chess.com"]
[Date "2023.05.20"]
[Round "-"]
[White "GMHarry-youtube"]
[Black "ViktorTheCoolBoy"]
[Result "0-1"]
[WhiteElo "2152"]
[BlackElo "2542"]
[TimeControl "300"]
[EndTime "10:42:53 PDT"]
[Termination "ViktorTheCoolBoy won by checkmate"]

1. e4 {[%clk 0:04:58]} 1... c5 {[%clk 0:04:56.7]} 2. Nf3 {[%clk 0:04:57.1]} 2...
Nc6 {[%clk 0:04:53.3]} 3. Bb5 {[%clk 0:04:56]} 3... e6 {[%clk 0:04:51.6]} 4. O-O
{[%clk 0:04:53.3]} 4... Nge7 {[%clk 0:04:50.1]} 5. Re1 {[%clk 0:04:52.4]} 5...
a6 {[%clk 0:04:47.2]} 6. Bf1 {[%clk 0:04:51.8]} 6... d5 {[%clk 0:04:45.7]} 7.
exd5 {[%clk 0:04:46.4]} 7... Nxd5 {[%clk 0:04:45.6]} 8. c3 {[%clk 0:04:44.8]}
8... Be7 {[%clk 0:04:44.2]} 9. d4 {[%clk 0:04:43.8]} 9... O-O {[%clk 0:04:42.6]}
10. Bd3 {[%clk 0:04:41.5]} 10... cxd4 {[%clk 0:04:41.1]} 11. Nxd4 {[%clk
0:04:39.9]} 11... Nxd4 {[%clk 0:04:38]} 12. cxd4 {[%clk 0:04:39.8]} 12... Bf6
{[%clk 0:04:35.8]} 13. Nc3 {[%clk 0:04:38]} 13... Nb4 {[%clk 0:04:31.3]} 14. Be3
{[%clk 0:04:35.6]} 14... Nxd3 {[%clk 0:04:26.5]} 15. Qxd3 {[%clk 0:04:35.5]}
15... b5 {[%clk 0:04:25.5]} 16. d5 {[%clk 0:04:32.4]} 16... exd5 {[%clk
0:04:22.2]} 17. Nxd5 {[%clk 0:04:20.7]} 17... Bxb2 {[%clk 0:04:15.8]} 18. Rad1
{[%clk 0:04:16.9]} 18... Be6 {[%clk 0:04:13]} 19. Bc5 {[%clk 0:04:08.7]} 19...
Qxd5 {[%clk 0:03:42.6]} 20. Qxd5 {[%clk 0:04:00.7]} 20... Bxd5 {[%clk
0:03:41.5]} 21. Bxf8 {[%clk 0:03:58.8]} 21... Bxa2 {[%clk 0:03:40.2]} 22. Bb4
{[%clk 0:03:48.6]} 22... Be6 {[%clk 0:03:35.8]} 23. f4 {[%clk 0:03:42.5]} 23...
g6 {[%clk 0:03:32.8]} 24. Rd2 {[%clk 0:03:39.4]} 24... Bf6 {[%clk 0:03:30.6]}
25. Bd6 {[%clk 0:03:23.2]} 25... a5 {[%clk 0:03:27.8]} 26. Be5 {[%clk
0:03:22.3]} 26... Bxe5 {[%clk 0:03:27]} 27. Rxe5 {[%clk 0:03:21.9]} 27... b4
{[%clk 0:03:25.8]} 28. Rb5 {[%clk 0:03:20.8]} 28... b3 {[%clk 0:03:22.8]} 29.
Rc5 {[%clk 0:02:03.6]} 29... a4 {[%clk 0:03:20]} 30. Rc1 {[%clk 0:02:01.6]}
30... a3 {[%clk 0:03:18.9]} 31. Rb1 {[%clk 0:01:55.3]} 31... b2 {[%clk
0:03:15.8]} 32. Kf2 {[%clk 0:01:52.2]} 32... a2 {[%clk 0:03:14.6]} 33. Rdxb2
{[%clk 0:01:50.2]} 33... axb1=Q {[%clk 0:03:13.4]} 34. Rxb1 {[%clk 0:01:50]}
34... Ra2+ {[%clk 0:03:11.9]} 35. Kg3 {[%clk 0:01:45.7]} 35... Bd5 {[%clk
0:03:10.5]} 36. Rg1 {[%clk 0:01:44]} 36... f5 {[%clk 0:03:08.7]} 37. Kh3 {[%clk
0:01:43]} 37... h5 {[%clk 0:03:07]} 38. g3 {[%clk 0:01:42.3]} 38... Kg7 {[%clk
0:03:05.9]} 39. Rd1 {[%clk 0:01:39.3]} 39... Bg2+ {[%clk 0:03:05]} 40. Kh4
{[%clk 0:01:37.8]} 40... Bf3 {[%clk 0:03:04.4]} 41. Rd7+ {[%clk 0:01:34.7]}
41... Kh6 {[%clk 0:03:03.4]} 42. h3 {[%clk 0:01:33.3]} 42... Rh2 {[%clk
0:03:00.2]} 43. g4 {[%clk 0:01:28.3]} 43... Bxg4 {[%clk 0:02:58.7]} 44. Rd3
{[%clk 0:01:23]} 44... Rxh3+ {[%clk 0:02:58.1]} 45. Rxh3 {[%clk 0:01:21.3]}
45... Bxh3 {[%clk 0:02:58]} 46. Kxh3 {[%clk 0:01:21.2]} 46... g5 {[%clk
0:02:57.9]} 47. Kg3 {[%clk 0:01:21]} 47... h4+ {[%clk 0:02:56.8]} 48. Kf3 {[%clk
0:01:19.7]} 48... g4+ {[%clk 0:02:55.5]} 49. Kg2 {[%clk 0:01:18.9]} 49... Kg6
{[%clk 0:02:55]} 50. Kf2 {[%clk 0:01:18.8]} 50... Kf6 {[%clk 0:02:54.1]} 51. Kg1
{[%clk 0:01:18.7]} 51... Ke6 {[%clk 0:02:53.7]} 52. Kf1 {[%clk 0:01:18.6]} 52...
Kd5 {[%clk 0:02:53.4]} 53. Kf2 {[%clk 0:01:18.5]} 53... Ke4 {[%clk 0:02:53]} 54.
Kg2 {[%clk 0:01:18.4]} 54... Kxf4 {[%clk 0:02:52.7]} 55. Kg1 {[%clk 0:01:18.3]}
55... Kg3 {[%clk 0:02:51.8]} 56. Kf1 {[%clk 0:01:18.2]} 56... Kh2 {[%clk
0:02:51.1]} 57. Kf2 {[%clk 0:01:18.1]} 57... g3+ {[%clk 0:02:50.7]} 58. Kf3
{[%clk 0:01:16.4]} 58... g2 {[%clk 0:02:50.6]} 59. Kf4 {[%clk 0:01:16.3]} 59...
g1=Q {[%clk 0:02:50.5]} 60. Kxf5 {[%clk 0:01:16.2]} 60... Kg3 {[%clk 0:02:48.8]}
61. Ke4 {[%clk 0:01:16.1]} 61... Qf2 {[%clk 0:02:48]} 62. Kd3 {[%clk 0:01:15.4]}
62... Qf3+ {[%clk 0:02:47.9]} 63. Kc4 {[%clk 0:01:15.3]} 63... h3 {[%clk
0:02:47.7]} 64. Kc5 {[%clk 0:01:15.2]} 64... h2 {[%clk 0:02:47.6]} 65. Kb5
{[%clk 0:01:15]} 65... h1=Q {[%clk 0:02:47.5]} 66. Ka4 {[%clk 0:01:14.9]} 66...
Qb1 {[%clk 0:02:46.4]} 67. Ka5 {[%clk 0:01:13.3]} 67... Qa8# {[%clk 0:02:46.3]}
0-1

[Event "Live Chess"]
[Site "Chess.com"]
[Date "2023.05.20"]
[Round "-"]
[White "mliszewski"]
[Black "Prijmak"]
[Result "1-0"]
[WhiteElo "1898"]
[BlackElo "998"]
[TimeControl "300"]
[EndTime "10:43:03 PDT"]
[Termination "mliszewski won by resignation"]

1. d4 {[%clk 0:04:59.8]} 1... e5 {[%clk 0:04:56]} 2. dxe5 {[%clk 0:04:58.5]}
2... Nc6 {[%clk 0:04:54]} 3. Nf3 {[%clk 0:04:57.6]} 3... Qe7 {[%clk 0:04:46.3]}
4. Bf4 {[%clk 0:04:56.1]} 4... d6 {[%clk 0:04:35.7]} 5. exd6 {[%clk 0:04:51]}
5... cxd6 {[%clk 0:04:32.4]} 6. Nc3 {[%clk 0:04:48]} 6... Be6 {[%clk 0:04:28.3]}
7. e3 {[%clk 0:04:46.8]} 7... O-O-O {[%clk 0:04:25.8]} 8. Bd3 {[%clk 0:04:21.6]}
8... h6 {[%clk 0:04:23.2]} 9. O-O {[%clk 0:04:17.7]} 9... g5 {[%clk 0:04:21.2]}
10. Bg3 {[%clk 0:04:17.1]} 10... Nf6 {[%clk 0:04:17.4]} 11. Nd4 {[%clk
0:03:58.3]} 11... Nxd4 {[%clk 0:04:09.8]} 12. exd4 {[%clk 0:03:57.2]} 12... Nh5
{[%clk 0:04:03.7]} 13. Re1 {[%clk 0:03:55.5]} 13... Nxg3 {[%clk 0:04:01.5]} 14.
fxg3 {[%clk 0:03:55.4]} 14... Qd7 {[%clk 0:03:57]} 15. Qf3 {[%clk 0:03:38.9]}
15... f5 {[%clk 0:03:43.1]} 16. Rxe6 {[%clk 0:03:33.5]} 16... Qxe6 {[%clk
0:03:40.1]} 17. Bxf5 {[%clk 0:03:32.6]} 17... Qxf5 {[%clk 0:03:31.5]} 18. Qxf5+
{[%clk 0:03:31.9]} 18... Kc7 {[%clk 0:03:28.8]} 19. Nd5+ {[%clk 0:03:25.2]}
19... Kc6 {[%clk 0:03:24.6]} 20. c4 {[%clk 0:03:24]} 20... Bg7 {[%clk
0:03:18.3]} 21. Ne7+ {[%clk 0:03:12.6]} 21... Kc7 {[%clk 0:03:14.6]} 22. d5
{[%clk 0:02:54.8]} 22... Bd4+ {[%clk 0:03:09.7]} 23. Kh1 {[%clk 0:02:52.7]}
23... Rdf8 {[%clk 0:03:07]} 24. Qd3 {[%clk 0:02:45.4]} 24... Bc5 {[%clk
0:03:00.2]} 25. a3 {[%clk 0:02:41.4]} 25... a5 {[%clk 0:02:56.9]} 26. Ng6 {[%clk
0:02:40]} 26... Rhg8 {[%clk 0:02:48.5]} 27. Nxf8 {[%clk 0:02:38.9]} 27... Rxf8
{[%clk 0:02:47.1]} 28. Re1 {[%clk 0:02:37.8]} 28... Rf7 {[%clk 0:02:43.5]} 29.
h3 {[%clk 0:02:35.8]} 29... b6 {[%clk 0:02:39.8]} 30. Qg6 {[%clk 0:02:26.7]}
30... Rd7 {[%clk 0:02:24.5]} 31. Qe8 {[%clk 0:02:21.1]} 31... Bf2 {[%clk
0:02:21.5]} 32. Re7 {[%clk 0:02:19]} 32... Rxe7 {[%clk 0:02:15.9]} 33. Qxe7+
{[%clk 0:02:18.9]} 33... Kc8 {[%clk 0:02:12]} 34. Qf8+ {[%clk 0:02:18]} 34...
Kd7 {[%clk 0:02:10.6]} 35. Qxf2 {[%clk 0:02:17.9]} 1-0

[Event "Live Chess"]
[Site "Chess.com"]
[Date "2023.05.20"]
[Round "-"]
[White "yeetpizza74"]
[Black "zdanevych"]
[Result "0-1"]
[WhiteElo "448"]
[BlackElo "1545"]
[TimeControl "300"]
[EndTime "10:43:15 PDT"]
[Termination "zdanevych won by checkmate"]

1. e4 {[%clk 0:04:58.2]} 1... c5 {[%clk 0:04:58.7]} 2. d4 {[%clk 0:04:56.3]}
2... cxd4 {[%clk 0:04:56.5]} 3. Qxd4 {[%clk 0:04:55.3]} 3... Nc6 {[%clk
0:04:56]} 4. Qd1 {[%clk 0:04:53.3]} 4... e5 {[%clk 0:04:55.6]} 5. Nf3 {[%clk
0:04:49.2]} 5... Nf6 {[%clk 0:04:52.7]} 6. Nc3 {[%clk 0:04:46.8]} 6... Bb4
{[%clk 0:04:50.6]} 7. Bd2 {[%clk 0:04:44.2]} 7... a6 {[%clk 0:04:45.9]} 8. Nd5
{[%clk 0:04:33.4]} 8... Bxd2+ {[%clk 0:04:40.2]} 9. Qxd2 {[%clk 0:04:29.9]} 9...
Nxe4 {[%clk 0:04:39.3]} 10. Qe3 {[%clk 0:04:16.4]} 10... Qa5+ {[%clk 0:04:30.9]}
11. c3 {[%clk 0:04:11.4]} 11... Qxd5 {[%clk 0:04:28.9]} 12. Bd3 {[%clk
0:03:56.5]} 12... f5 {[%clk 0:03:53.5]} 13. c4 {[%clk 0:03:47.1]} 13... Qc5
{[%clk 0:03:48.7]} 14. Bxe4 {[%clk 0:03:37.7]} 14... Qxe3+ {[%clk 0:03:39.8]}
15. fxe3 {[%clk 0:03:36.3]} 15... fxe4 {[%clk 0:03:38.3]} 16. Nd2 {[%clk
0:03:30.4]} 16... O-O {[%clk 0:03:31.8]} 17. O-O-O {[%clk 0:03:28.1]} 17... Nb4
{[%clk 0:03:26.6]} 18. Rhf1 {[%clk 0:03:22.3]} 18... Rxf1 {[%clk 0:03:22.6]} 19.
Rxf1 {[%clk 0:03:20.4]} 19... Nd3+ {[%clk 0:03:22.5]} 20. Kd1 {[%clk 0:03:13.1]}
20... b5 {[%clk 0:03:20.1]} 21. cxb5 {[%clk 0:03:09.7]} 21... axb5 {[%clk
0:03:20]} 22. Nxe4 {[%clk 0:03:08.2]} 22... Bb7 {[%clk 0:03:06.5]} 23. Kd2
{[%clk 0:02:57.9]} 23... Bxe4 {[%clk 0:03:04.1]} 24. b3 {[%clk 0:02:45.3]} 24...
Rxa2+ {[%clk 0:03:02]} 25. Kc3 {[%clk 0:02:41.3]} 25... b4+ {[%clk 0:02:55]} 26.
Kc4 {[%clk 0:02:39]} 26... d5+ {[%clk 0:02:53.6]} 27. Kb5 {[%clk 0:02:36.9]}
27... Rxg2 {[%clk 0:02:48.3]} 28. Kc6 {[%clk 0:02:30.5]} 28... d4+ {[%clk
0:02:43.5]} 29. Kd7 {[%clk 0:02:27.4]} 29... h6 {[%clk 0:02:34.8]} 30. exd4
{[%clk 0:02:24.5]} 30... exd4 {[%clk 0:02:33.2]} 31. Ke7 {[%clk 0:02:19.4]}
31... Rxh2 {[%clk 0:02:28.3]} 32. Rf8+ {[%clk 0:02:11.7]} 32... Kh7 {[%clk
0:02:27.4]} 33. Kf7 {[%clk 0:02:10.9]} 33... Rf2+ {[%clk 0:02:24.3]} 34. Ke8
{[%clk 0:02:07.2]} 34... Rxf8+ {[%clk 0:02:24.2]} 35. Kxf8 {[%clk 0:02:06.4]}
35... Nc5 {[%clk 0:02:23.6]} 36. Ke7 {[%clk 0:02:04.1]} 36... d3 {[%clk
0:02:22.8]} 37. Kd6 {[%clk 0:02:02.8]} 37... d2 {[%clk 0:02:22.7]} 38. Kxc5
{[%clk 0:02:01.7]} 38... d1=Q {[%clk 0:02:22.6]} 39. Kxb4 {[%clk 0:02:00.4]}
39... Qd4+ {[%clk 0:02:19]} 40. Ka5 {[%clk 0:01:57.5]} 40... Qc3+ {[%clk
0:02:14]} 41. b4 {[%clk 0:01:56]} 41... g5 {[%clk 0:02:03.9]} 42. Ka6 {[%clk
0:01:43.8]} 42... Qc6+ {[%clk 0:02:00.5]} 43. Ka5 {[%clk 0:01:41.8]} 43... Qc7+
{[%clk 0:01:59.3]} 44. Ka6 {[%clk 0:01:38.8]} 44... Bd3+ {[%clk 0:01:57.9]} 45.
b5 {[%clk 0:01:37.3]} 45... Qc8+ {[%clk 0:01:52.7]} 46. Ka5 {[%clk 0:01:35.2]}
46... g4 {[%clk 0:01:49]} 47. b6 {[%clk 0:01:34]} 47... Qa8+ {[%clk 0:01:44.9]}
48. Kb4 {[%clk 0:01:31]} 48... Qb7 {[%clk 0:01:43]} 49. Kc5 {[%clk 0:01:29.2]}
49... g3 {[%clk 0:01:39]} 50. Kd4 {[%clk 0:01:25.5]} 50... g2 {[%clk 0:01:38.4]}
51. Kxd3 {[%clk 0:01:22.7]} 51... g1=Q {[%clk 0:01:36.9]} 52. Ke2 {[%clk
0:01:20.9]} 52... Qg4+ {[%clk 0:01:34.1]} 53. Ke3 {[%clk 0:01:19.4]} 53... Qbf3+
{[%clk 0:01:33.3]} 54. Kd2 {[%clk 0:01:17.8]} 54... Qgg2+ {[%clk 0:01:32.6]} 55.
Ke1 {[%clk 0:01:15.2]} 55... Qff1# {[%clk 0:01:31.8]} 0-1